[Event "Live Chess"]
[Site "Chess.com"]
[Date "2024.06.02"]
[Round "-"]
[White "StoreySniper"]
[Black "lyricalschemes"]
[Result "0-1"]
[WhiteElo "2525"]
[BlackElo "2310"]
[TimeControl "300"]
[EndTime "17:45:30 PDT"]
[Termination "lyricalschemes won by resignation"]

1. e4 {[%clk 0:04:57.2]} 1... Nf6 {[%clk 0:04:58.9]} 2. Nc3 {[%clk 0:04:54.5]}
2... e5 {[%clk 0:04:57.9]} 3. Nf3 {[%clk 0:04:53.8]} 3... Nc6 {[%clk 0:04:57.2]}
4. Bb5 {[%clk 0:04:52.9]} 4... Nd4 {[%clk 0:04:56.3]} 5. a4 {[%clk 0:04:50.4]}
5... c6 {[%clk 0:04:55.1]} 6. Bd3 {[%clk 0:04:48.6]} 6... Nxf3+ {[%clk
0:04:54.1]} 7. Qxf3 {[%clk 0:04:47.1]} 7... d5 {[%clk 0:04:53.3]} 8. h3 {[%clk
0:04:43.2]} 8... Bb4 {[%clk 0:04:51]} 9. O-O {[%clk 0:04:40.5]} 9... O-O {[%clk
0:04:47.7]} 10. Re1 {[%clk 0:04:30.8]} 10... d4 {[%clk 0:04:46.6]} 11. Ne2
{[%clk 0:04:20.5]} 11... Be6 {[%clk 0:04:40.8]} 12. Ng3 {[%clk 0:04:14.9]} 12...
c5 {[%clk 0:04:34.9]} 13. b3 {[%clk 0:04:06.1]} 13... Rc8 {[%clk 0:04:31.8]} 14.
Nf5 {[%clk 0:03:57.9]} 14... Bxf5 {[%clk 0:04:25.4]} 15. Qxf5 {[%clk 0:03:56.5]}
15... Qd7 {[%clk 0:04:21.2]} 16. Qg5 {[%clk 0:03:45.8]} 16... Qd6 {[%clk
0:04:13.2]} 17. Bc4 {[%clk 0:03:40.6]} 17... Nd7 {[%clk 0:04:06.6]} 18. Rd1
{[%clk 0:03:26]} 18... Qf6 {[%clk 0:04:04.9]} 19. Qg4 {[%clk 0:03:21.9]} 19...
Nb6 {[%clk 0:04:03.4]} 20. Bd3 {[%clk 0:03:16]} 20... c4 {[%clk 0:03:56.6]} 21.
bxc4 {[%clk 0:03:13.6]} 21... Nxc4 {[%clk 0:03:56.2]} 22. Qe2 {[%clk 0:03:05.3]}
22... Nd6 {[%clk 0:03:51.8]} 23. Ba3 {[%clk 0:02:55.8]} 23... Bxa3 {[%clk
0:03:49]} 24. Rxa3 {[%clk 0:02:55.7]} 24... Qe6 {[%clk 0:03:45.8]} 25. Rb1
{[%clk 0:02:51.1]} 25... Rc7 {[%clk 0:03:40.6]} 26. Rab3 {[%clk 0:02:48.5]}
26... b6 {[%clk 0:03:39.1]} 27. a5 {[%clk 0:02:43.9]} 27... bxa5 {[%clk
0:03:36.5]} 28. Ra1 {[%clk 0:02:41.5]} 28... Rc5 {[%clk 0:03:34.7]} 29. Rba3
{[%clk 0:02:38]} 29... Nc4 {[%clk 0:03:15.7]} 30. Ra4 {[%clk 0:02:18.1]} 30...
Rfc8 {[%clk 0:03:10.1]} 31. R1a2 {[%clk 0:02:15.8]} 31... g6 {[%clk 0:02:56.3]}
32. Kh2 {[%clk 0:02:05.1]} 32... Kg7 {[%clk 0:02:48.9]} 33. Ra1 {[%clk
0:01:53.5]} 33... Kg8 {[%clk 0:02:43.9]} 34. R1a2 {[%clk 0:01:49.5]} 34... Kg7
{[%clk 0:02:42.9]} 35. g3 {[%clk 0:01:42.1]} 35... R8c7 {[%clk 0:02:37.5]} 36.
h4 {[%clk 0:01:41]} 36... h5 {[%clk 0:02:35.2]} 37. Kg2 {[%clk 0:01:38.1]} 37...
Kg8 {[%clk 0:02:29.2]} 38. Bxc4 {[%clk 0:01:22.3]} 38... Rxc4 {[%clk 0:02:25.3]}
39. Rxa5 {[%clk 0:01:21.2]} 39... Qb6 {[%clk 0:02:10.2]} 40. Rxe5 {[%clk
0:01:12.2]} 40... Rxc2 {[%clk 0:02:09.2]} 41. Rxc2 {[%clk 0:00:43.6]} 41... Rxc2
{[%clk 0:02:09.1]} 42. Qd3 {[%clk 0:00:39.9]} 42... Qb2 {[%clk 0:02:05.5]} 43.
Qf3 {[%clk 0:00:30]} 43... Rc8 {[%clk 0:01:55.8]} 44. Re7 {[%clk 0:00:25]} 44...
Qa2 {[%clk 0:01:54.5]} 45. e5 {[%clk 0:00:21.3]} 45... Qa6 {[%clk 0:01:46.9]}
46. e6 {[%clk 0:00:19.2]} 46... f5 {[%clk 0:01:43.9]} 47. Qb3 {[%clk 0:00:10.5]}
47... Qc6+ {[%clk 0:01:42.4]} 48. Kh2 {[%clk 0:00:08.9]} 48... Rc7 {[%clk
0:01:25.1]} 49. Re8+ {[%clk 0:00:07.9]} 49... Kg7 {[%clk 0:01:24.4]} 50. Rb8
{[%clk 0:00:06.4]} 50... Re7 {[%clk 0:01:22.1]} 51. Qb4 {[%clk 0:00:04.8]} 51...
Qxe6 {[%clk 0:01:21.2]} 52. Qa4 {[%clk 0:00:03.8]} 52... Qe5 {[%clk 0:01:20.9]}
53. Qa5 {[%clk 0:00:03]} 53... Qxa5 {[%clk 0:01:19.7]} 54. Rb7 {[%clk
0:00:01.4]} 54... Rxb7 {[%clk 0:01:17.9]} 0-1

[Event "Live Chess"]
[Site "Chess.com"]
[Date "2024.06.02"]
[Round "-"]
[White "gobbles19"]
[Black "ACM42"]
[Result "0-1"]
[WhiteElo "2259"]
[BlackElo "2179"]
[TimeControl "300"]
[EndTime "17:46:04 PDT"]
[Termination "ACM42 won by resignation"]

1. e4 {[%clk 0:04:57.4]} 1... g6 {[%clk 0:04:57.2]} 2. d4 {[%clk 0:04:56.3]}
2... Bg7 {[%clk 0:04:56.6]} 3. Nc3 {[%clk 0:04:55.8]} 3... d6 {[%clk 0:04:55.4]}
4. h3 {[%clk 0:04:55.1]} 4... Nd7 {[%clk 0:04:52.3]} 5. Nf3 {[%clk 0:04:53.8]}
5... Ngf6 {[%clk 0:04:49.3]} 6. Be2 {[%clk 0:04:51.4]} 6... O-O {[%clk
0:04:48.2]} 7. O-O {[%clk 0:04:49.8]} 7... e5 {[%clk 0:04:47.3]} 8. Be3 {[%clk
0:04:47.5]} 8... c6 {[%clk 0:04:46.3]} 9. Qd2 {[%clk 0:04:44.8]} 9... Qc7 {[%clk
0:04:45.7]} 10. Rad1 {[%clk 0:04:41.8]} 10... b6 {[%clk 0:04:40.4]} 11. Bh6
{[%clk 0:04:40]} 11... Bb7 {[%clk 0:04:36.4]} 12. Bxg7 {[%clk 0:04:37.5]} 12...
Kxg7 {[%clk 0:04:35.3]} 13. Rfe1 {[%clk 0:04:37.1]} 13... Rad8 {[%clk
0:04:34.2]} 14. a4 {[%clk 0:04:29.4]} 14... Rfe8 {[%clk 0:04:22.4]} 15. Bd3
{[%clk 0:04:23.3]} 15... exd4 {[%clk 0:04:07.3]} 16. Nxd4 {[%clk 0:04:20.6]}
16... Ne5 {[%clk 0:04:06.6]} 17. Bf1 {[%clk 0:04:19.3]} 17... d5 {[%clk
0:04:03.5]} 18. f4 {[%clk 0:04:16.4]} 18... Nc4 {[%clk 0:03:57.2]} 19. Bxc4
{[%clk 0:04:14.9]} 19... dxc4 {[%clk 0:03:56.4]} 20. e5 {[%clk 0:04:14.4]} 20...
Nd5 {[%clk 0:03:15.3]} 21. Nxd5 {[%clk 0:04:08.8]} 21... Rxd5 {[%clk 0:03:13.1]}
22. Qf2 {[%clk 0:04:07.5]} 22... Red8 {[%clk 0:03:06.4]} 23. Qg3 {[%clk
0:04:01.4]} 23... Rxd4 {[%clk 0:02:50.6]} 0-1

[Event "Live Chess"]
[Site "Chess.com"]
[Date "2024.06.02"]
[Round "-"]
[White "KeithArkell"]
[Black "ShanthamGrarks"]
[Result "1-0"]
[WhiteElo "2426"]
[BlackElo "1857"]
[TimeControl "300"]
[EndTime "17:46:22 PDT"]
[Termination "KeithArkell won by resignation"]

1. d4 {[%clk 0:04:57.8]} 1... e6 {[%clk 0:04:55.7]} 2. Nf3 {[%clk 0:04:57.2]}
2... d5 {[%clk 0:04:55]} 3. Bg5 {[%clk 0:04:56.7]} 3... Be7 {[%clk 0:04:53]} 4.
Bxe7 {[%clk 0:04:56]} 4... Nxe7 {[%clk 0:04:52.6]} 5. Nbd2 {[%clk 0:04:55.8]}
5... h6 {[%clk 0:04:50.4]} 6. e4 {[%clk 0:04:55.1]} 6... dxe4 {[%clk 0:04:46.9]}
7. Nxe4 {[%clk 0:04:54.5]} 7... b6 {[%clk 0:04:40.2]} 8. Bd3 {[%clk 0:04:53.1]}
8... Bb7 {[%clk 0:04:38.9]} 9. Qe2 {[%clk 0:04:51.7]} 9... Nd7 {[%clk
0:04:37.8]} 10. O-O-O {[%clk 0:04:50.7]} 10... Rc8 {[%clk 0:04:34.3]} 11. Ne5
{[%clk 0:04:48.4]} 11... Nxe5 {[%clk 0:04:32.8]} 12. dxe5 {[%clk 0:04:47.8]}
12... Nd5 {[%clk 0:04:31.3]} 13. Bb5+ {[%clk 0:04:42.1]} 13... c6 {[%clk
0:04:29.9]} 14. Nd6+ {[%clk 0:04:40.2]} 14... Kf8 {[%clk 0:04:24.4]} 15. Nxc8
{[%clk 0:04:31.6]} 15... cxb5 {[%clk 0:04:19.9]} 16. Nd6 {[%clk 0:04:30.3]}
16... Ba6 {[%clk 0:04:12.6]} 17. Qf3 {[%clk 0:04:24.9]} 17... Qc7 {[%clk
0:04:09.3]} 18. Rxd5 {[%clk 0:04:22.4]} 18... exd5 {[%clk 0:04:07.7]} 19. Qxd5
{[%clk 0:04:21.6]} 19... g6 {[%clk 0:04:03.2]} 20. e6 {[%clk 0:04:19.5]} 20...
Ke7 {[%clk 0:03:51.2]} 21. Qe5 {[%clk 0:04:06.5]} 21... Qxd6 {[%clk 0:03:37.4]}
22. Qxh8 {[%clk 0:04:05.1]} 22... Qxe6 {[%clk 0:03:31.3]} 23. Rd1 {[%clk
0:04:03.6]} 23... Qc8 {[%clk 0:03:22.7]} 24. Re1+ {[%clk 0:04:00.1]} 24... Kd7
{[%clk 0:03:15.2]} 25. Qd4+ {[%clk 0:03:54.9]} 25... Kc6 {[%clk 0:03:07.2]} 26.
Re7 {[%clk 0:03:49.4]} 26... Qf5 {[%clk 0:02:56.9]} 27. f4 {[%clk 0:03:38.1]}
27... b4 {[%clk 0:02:38.3]} 28. b3 {[%clk 0:03:28]} 28... Bb5 {[%clk 0:02:13.8]}
29. Qxb4 {[%clk 0:03:26.2]} 29... Qf6 {[%clk 0:02:00.9]} 30. Re5 {[%clk
0:03:23]} 30... a6 {[%clk 0:01:56.2]} 31. a4 {[%clk 0:03:19.5]} 31... Bf1 {[%clk
0:01:48.7]} 32. Qc3+ {[%clk 0:03:18.2]} 1-0

[Event "Live Chess"]
[Site "Chess.com"]
[Date "2024.06.02"]
[Round "-"]
[White "mychess51"]
[Black "TheSmoulderingMaster"]
[Result "0-1"]
[WhiteElo "1709"]
[BlackElo "1769"]
[TimeControl "300"]
[EndTime "17:46:27 PDT"]
[Termination "TheSmoulderingMaster won on time"]

1. d4 {[%clk 0:04:55.3]} 1... Nf6 {[%clk 0:04:56.2]} 2. Nf3 {[%clk 0:04:51.8]}
2... d6 {[%clk 0:04:55.2]} 3. g3 {[%clk 0:04:50.1]} 3... g6 {[%clk 0:04:54.5]}
4. Bg2 {[%clk 0:04:47.6]} 4... Bg7 {[%clk 0:04:53.8]} 5. O-O {[%clk 0:04:46.9]}
5... O-O {[%clk 0:04:52.8]} 6. c4 {[%clk 0:04:43.9]} 6... c6 {[%clk 0:04:51.6]}
7. Nc3 {[%clk 0:04:43]} 7... Bg4 {[%clk 0:04:50.5]} 8. e4 {[%clk 0:04:38.9]}
8... Nbd7 {[%clk 0:04:49.2]} 9. h3 {[%clk 0:04:30.1]} 9... Bxf3 {[%clk
0:04:45.2]} 10. Bxf3 {[%clk 0:04:28.5]} 10... e5 {[%clk 0:04:44.3]} 11. Be3
{[%clk 0:04:25.7]} 11... Re8 {[%clk 0:04:40.7]} 12. Re1 {[%clk 0:04:15]} 12...
exd4 {[%clk 0:04:31.7]} 13. Bxd4 {[%clk 0:04:11.9]} 13... Ne5 {[%clk 0:04:29.9]}
14. Bxe5 {[%clk 0:03:59.3]} 14... dxe5 {[%clk 0:04:28.1]} 15. Qxd8 {[%clk
0:03:46.4]} 15... Raxd8 {[%clk 0:04:27]} 16. Rad1 {[%clk 0:03:43.9]} 16... Rd4
{[%clk 0:04:25]} 17. b3 {[%clk 0:03:29.5]} 17... Red8 {[%clk 0:04:21]} 18. Kf1
{[%clk 0:03:10.3]} 18... h5 {[%clk 0:04:13.6]} 19. Ke2 {[%clk 0:02:49.8]} 19...
R8d7 {[%clk 0:04:07.6]} 20. Bg2 {[%clk 0:02:37.4]} 20... Ne8 {[%clk 0:03:54.9]}
21. Na4 {[%clk 0:02:28.1]} 21... b6 {[%clk 0:03:50.1]} 22. Rxd4 {[%clk
0:02:13.7]} 22... exd4 {[%clk 0:03:48]} 23. e5 {[%clk 0:01:41.1]} 23... Bxe5
{[%clk 0:03:44.8]} 24. Bxc6 {[%clk 0:01:34.1]} 24... Re7 {[%clk 0:03:44.1]} 25.
Kd3 {[%clk 0:01:30]} 25... Nc7 {[%clk 0:03:32.6]} 26. f4 {[%clk 0:01:25.5]}
26... Bf6 {[%clk 0:03:29.9]} 27. Rxe7 {[%clk 0:01:21.9]} 27... Bxe7 {[%clk
0:03:29.8]} 28. Kxd4 {[%clk 0:01:18.2]} 28... Kg7 {[%clk 0:03:27.6]} 29. Bf3
{[%clk 0:01:08.4]} 29... h4 {[%clk 0:03:25.9]} 30. g4 {[%clk 0:01:04.9]} 30...
Kf6 {[%clk 0:03:19.1]} 31. Nc3 {[%clk 0:01:01.9]} 31... Bd6 {[%clk 0:03:09.1]}
32. Ne4+ {[%clk 0:00:54.2]} 32... Ke7 {[%clk 0:03:06.2]} 33. Nxd6 {[%clk
0:00:52]} 33... Kxd6 {[%clk 0:03:05.2]} 34. Bd5 {[%clk 0:00:46.5]} 34... f6
{[%clk 0:03:02.8]} 35. g5 {[%clk 0:00:39]} 35... fxg5 {[%clk 0:02:58.7]} 36.
fxg5 {[%clk 0:00:37.9]} 36... a5 {[%clk 0:02:47.1]} 37. Bf7 {[%clk 0:00:36.6]}
37... Ke7 {[%clk 0:02:42]} 38. Bxg6 {[%clk 0:00:33.6]} 38... Ne6+ {[%clk
0:02:41]} 39. Ke5 {[%clk 0:00:29.4]} 39... Nxg5 {[%clk 0:02:38.1]} 40. Bf5
{[%clk 0:00:25.1]} 40... Nf3+ {[%clk 0:02:36.4]} 41. Kf4 {[%clk 0:00:21.7]}
41... Nd4 {[%clk 0:02:33]} 42. Bg4 {[%clk 0:00:17.3]} 42... Kf6 {[%clk
0:02:31.1]} 43. Ke4 {[%clk 0:00:15.8]} 43... Nc2 {[%clk 0:02:27.3]} 44. Kd3
{[%clk 0:00:14.4]} 44... Nb4+ {[%clk 0:02:26.4]} 45. Kd4 {[%clk 0:00:13.7]}
45... Nxa2 {[%clk 0:02:25.2]} 46. Kd5 {[%clk 0:00:13.6]} 46... Nb4+ {[%clk
0:02:24]} 47. Kd6 {[%clk 0:00:12.4]} 47... Nd3 {[%clk 0:02:22.3]} 48. Kc7 {[%clk
0:00:11.6]} 48... Ne5 {[%clk 0:02:09.7]} 49. Kxb6 {[%clk 0:00:11.5]} 49... Nxg4
{[%clk 0:02:08.8]} 50. hxg4 {[%clk 0:00:10.3]} 50... h3 {[%clk 0:02:07.9]} 51.
c5 {[%clk 0:00:10.2]} 51... h2 {[%clk 0:02:07.4]} 52. c6 {[%clk 0:00:10.1]}
52... h1=Q {[%clk 0:02:06.6]} 53. c7 {[%clk 0:00:10]} 53... Qg1+ {[%clk
0:02:03.4]} 54. Kb7 {[%clk 0:00:08.3]} 54... Qg2+ {[%clk 0:02:00.2]} 55. Kb8
{[%clk 0:00:06.9]} 55... Qg3 {[%clk 0:01:57]} 56. Kb7 {[%clk 0:00:05.5]} 56...
Qxb3+ {[%clk 0:01:55.2]} 57. Ka8 {[%clk 0:00:04.1]} 57... Qc4 {[%clk 0:01:53]}
58. c8=Q {[%clk 0:00:04]} 58... Qxc8+ {[%clk 0:01:51.6]} 59. Ka7 {[%clk
0:00:02.8]} 59... Qxg4 {[%clk 0:01:45.6]} 0-1

[Event "Live Chess"]
[Site "Chess.com"]
[Date "2024.06.02"]
[Round "-"]
[White "booktrunk"]
[Black "NeilDruggan73"]
[Result "0-1"]
[WhiteElo "1496"]
[BlackElo "1764"]
[TimeControl "300"]
[EndTime "17:46:28 PDT"]
[Termination "NeilDruggan73 won by resignation"]

1. d4 {[%clk 0:04:55.9]} 1... Nf6 {[%clk 0:04:57.8]} 2. Nc3 {[%clk 0:04:53.3]}
2... g6 {[%clk 0:04:56.5]} 3. a3 {[%clk 0:04:51.1]} 3... Bg7 {[%clk 0:04:55.8]}
4. Bf4 {[%clk 0:04:49.4]} 4... O-O {[%clk 0:04:54.7]} 5. Nb5 {[%clk 0:04:48.4]}
5... d6 {[%clk 0:04:53.6]} 6. Nf3 {[%clk 0:04:46.2]} 6... b6 {[%clk 0:04:52.6]}
7. e3 {[%clk 0:04:44.8]} 7... Bb7 {[%clk 0:04:51.8]} 8. Be2 {[%clk 0:04:42.5]}
8... a6 {[%clk 0:04:50.9]} 9. O-O {[%clk 0:04:42.4]} 9... axb5 {[%clk
0:04:48.9]} 10. Bxb5 {[%clk 0:04:40.7]} 10... Ba6 {[%clk 0:04:47.4]} 11. Bxa6
{[%clk 0:04:39.2]} 11... Nxa6 {[%clk 0:04:46.2]} 12. Qd3 {[%clk 0:04:38.5]}
12... Nb8 {[%clk 0:04:44.1]} 13. e4 {[%clk 0:04:35.4]} 13... Nh5 {[%clk
0:04:41.4]} 14. Bd2 {[%clk 0:04:31.2]} 14... Nd7 {[%clk 0:04:40.7]} 15. e5
{[%clk 0:04:29.4]} 15... dxe5 {[%clk 0:04:38.4]} 16. dxe5 {[%clk 0:04:28.4]}
16... Nxe5 {[%clk 0:04:36.6]} 17. Qxd8 {[%clk 0:04:26.8]} 17... Raxd8 {[%clk
0:04:34.3]} 18. Bc3 {[%clk 0:04:25.4]} 18... Nxf3+ {[%clk 0:04:32.2]} 19. gxf3
{[%clk 0:04:15.6]} 19... Bxc3 {[%clk 0:04:30.6]} 20. bxc3 {[%clk 0:04:15.5]}
20... Rd2 {[%clk 0:04:28.4]} 21. Rac1 {[%clk 0:04:13.7]} 21... Nf4 {[%clk
0:04:25.6]} 22. Rfd1 {[%clk 0:04:11.5]} 22... Rfd8 {[%clk 0:04:20.4]} 23. Rxd2
{[%clk 0:04:06.8]} 23... Rxd2 {[%clk 0:04:20]} 24. Kf1 {[%clk 0:03:59.3]} 24...
c5 {[%clk 0:04:12.4]} 25. Ke1 {[%clk 0:03:55.4]} 25... Re2+ {[%clk 0:04:10.9]}
26. Kf1 {[%clk 0:03:54.4]} 26... h5 {[%clk 0:04:03.7]} 27. a4 {[%clk 0:03:51.1]}
27... f5 {[%clk 0:04:01]} 28. Rb1 {[%clk 0:03:47.6]} 28... Rxc2 {[%clk
0:03:56.4]} 29. Ke1 {[%clk 0:03:45.7]} 29... Nd3+ {[%clk 0:03:49.1]} 30. Kd1
{[%clk 0:03:43.9]} 30... Rb2 {[%clk 0:03:47]} 31. Ra1 {[%clk 0:03:41.3]} 31...
Nxf2+ {[%clk 0:03:42.7]} 32. Ke1 {[%clk 0:03:39.9]} 32... Nd3+ {[%clk
0:03:41.1]} 33. Kd1 {[%clk 0:03:37.9]} 33... Rxh2 {[%clk 0:03:40.5]} 34. Ra3
{[%clk 0:03:35.5]} 34... c4 {[%clk 0:03:33.9]} 35. a5 {[%clk 0:03:33.4]} 35...
bxa5 {[%clk 0:03:31.4]} 36. Rxa5 {[%clk 0:03:31.9]} 36... h4 {[%clk 0:03:29.7]}
37. Ra4 {[%clk 0:03:29.2]} 37... Nb2+ {[%clk 0:03:27.2]} 0-1

[Event "Live Chess"]
[Site "Chess.com"]
[Date "2024.06.02"]
[Round "-"]
[White "Frankie_Badacsonyi"]
[Black "wadsy27"]
[Result "1/2-1/2"]
[WhiteElo "2411"]
[BlackElo "2584"]
[TimeControl "300"]
[EndTime "17:46:52 PDT"]
[Termination "Game drawn by repetition"]

1. d4 {[%clk 0:04:59.2]} 1... Nf6 {[%clk 0:04:57.8]} 2. c4 {[%clk 0:04:58.5]}
2... c5 {[%clk 0:04:57.4]} 3. d5 {[%clk 0:04:55.6]} 3... e6 {[%clk 0:04:56.7]}
4. Nc3 {[%clk 0:04:55]} 4... exd5 {[%clk 0:04:56.3]} 5. cxd5 {[%clk 0:04:54.9]}
5... d6 {[%clk 0:04:55.9]} 6. Nf3 {[%clk 0:04:51.4]} 6... g6 {[%clk 0:04:54.9]}
7. Bf4 {[%clk 0:04:50.3]} 7... a6 {[%clk 0:04:54.1]} 8. a4 {[%clk 0:04:49]} 8...
Bg7 {[%clk 0:04:53.4]} 9. e3 {[%clk 0:04:48.1]} 9... O-O {[%clk 0:04:52.5]} 10.
h3 {[%clk 0:04:47.4]} 10... Ne8 {[%clk 0:04:50.9]} 11. Be2 {[%clk 0:04:44.2]}
11... Qe7 {[%clk 0:04:47.2]} 12. O-O {[%clk 0:04:41]} 12... Nd7 {[%clk
0:04:41.6]} 13. Nd2 {[%clk 0:04:34]} 13... Nc7 {[%clk 0:04:40.3]} 14. Nc4 {[%clk
0:04:30.9]} 14... Ne5 {[%clk 0:04:39.3]} 15. Nb6 {[%clk 0:04:12.2]} 15... Rb8
{[%clk 0:04:35.4]} 16. Nxc8 {[%clk 0:04:10.9]} 16... Rfxc8 {[%clk 0:04:33.1]}
17. a5 {[%clk 0:03:55.8]} 17... b5 {[%clk 0:04:26.9]} 18. axb6 {[%clk
0:03:54.6]} 18... Rxb6 {[%clk 0:04:25.9]} 19. Qc2 {[%clk 0:03:29]} 19... Rcb8
{[%clk 0:04:16.1]} 20. Ra2 {[%clk 0:03:27.5]} 20... Nb5 {[%clk 0:04:08]} 21.
Rfa1 {[%clk 0:03:18.8]} 21... Nxc3 {[%clk 0:03:50.6]} 22. bxc3 {[%clk
0:03:18.7]} 22... c4 {[%clk 0:03:37.3]} 23. Rxa6 {[%clk 0:02:46.1]} 23... Rb2
{[%clk 0:03:35.2]} 24. Qd1 {[%clk 0:02:45.3]} 24... h5 {[%clk 0:03:23.3]} 25.
Ra8 {[%clk 0:02:34.9]} 25... Rxa8 {[%clk 0:03:18.3]} 26. Rxa8+ {[%clk
0:02:34.8]} 26... Kh7 {[%clk 0:03:17.5]} 27. Ra1 {[%clk 0:02:32]} 27... Qb7
{[%clk 0:03:12.2]} 28. Bxe5 {[%clk 0:02:21.3]} 28... Bxe5 {[%clk 0:03:11]} 29.
Bxc4 {[%clk 0:02:19.3]} 29... Bxc3 {[%clk 0:03:07.1]} 30. Rc1 {[%clk 0:02:07.4]}
30... Bd2 {[%clk 0:02:55.3]} 31. Ra1 {[%clk 0:02:05.4]} 31... Bc3 {[%clk
0:02:33.1]} 32. Rc1 {[%clk 0:02:02.3]} 32... Be5 {[%clk 0:02:32.2]} 33. Bd3
{[%clk 0:01:54.9]} 33... Kg7 {[%clk 0:02:28.2]} 34. Rb1 {[%clk 0:01:53.9]} 34...
Rxb1 {[%clk 0:02:21.2]} 35. Bxb1 {[%clk 0:01:52.9]} 35... Qb2 {[%clk 0:02:17.2]}
36. Qc2 {[%clk 0:01:42.6]} 36... Qb4 {[%clk 0:02:16.1]} 37. Qd1 {[%clk
0:01:38.3]} 37... Qc3 {[%clk 0:02:12.2]} 38. g3 {[%clk 0:01:32.3]} 38... h4
{[%clk 0:02:04.3]} 39. g4 {[%clk 0:01:31.4]} 39... Bf6 {[%clk 0:01:47.4]} 40.
Be4 {[%clk 0:01:28]} 40... Qe5 {[%clk 0:01:39.2]} 41. Bf3 {[%clk 0:01:26.8]}
41... Qb2 {[%clk 0:01:38]} 42. Kg2 {[%clk 0:01:24.2]} 42... Be5 {[%clk 0:01:36]}
43. Qe2 {[%clk 0:01:22.3]} 43... Qc1 {[%clk 0:01:33.8]} 44. Be4 {[%clk
0:01:19.1]} 44... Qa1 {[%clk 0:01:21.7]} 45. Bf3 {[%clk 0:01:17.9]} 45... Qc1
{[%clk 0:01:19.9]} 46. Be4 {[%clk 0:01:16.6]} 46... Qc5 {[%clk 0:01:18.9]} 47.
Bf3 {[%clk 0:01:15.5]} 47... Bf6 {[%clk 0:01:17.3]} 48. Be4 {[%clk 0:01:12]}
48... Qb4 {[%clk 0:01:16.2]} 49. Bf3 {[%clk 0:01:11.2]} 49... Qa4 {[%clk
0:01:15.3]} 50. Qd3 {[%clk 0:01:08.3]} 50... Be5 {[%clk 0:01:12]} 51. Qe2 {[%clk
0:01:06]} 51... f5 {[%clk 0:01:02]} 52. gxf5 {[%clk 0:01:02.3]} 52... gxf5
{[%clk 0:01:01.9]} 53. Qd3 {[%clk 0:00:48.3]} 53... Kf6 {[%clk 0:00:59.1]} 54.
Qb1 {[%clk 0:00:38.1]} 54... Qa7 {[%clk 0:00:55.2]} 55. Qb5 {[%clk 0:00:32.7]}
55... Qg7+ {[%clk 0:00:51.5]} 56. Kf1 {[%clk 0:00:30.6]} 56... Qf7 {[%clk
0:00:42.9]} 57. Qb8 {[%clk 0:00:26.6]} 57... Kg7 {[%clk 0:00:36.4]} 58. Qd8
{[%clk 0:00:24.3]} 58... Qf6 {[%clk 0:00:32.5]} 59. Qxf6+ {[%clk 0:00:23.3]}
59... Kxf6 {[%clk 0:00:31.5]} 60. Ke2 {[%clk 0:00:22.7]} 60... f4 {[%clk
0:00:30.9]} 61. e4 {[%clk 0:00:20.8]} 61... Bd4 {[%clk 0:00:30.2]} 62. Bg2
{[%clk 0:00:19.7]} 62... Ke5 {[%clk 0:00:28.4]} 63. f3 {[%clk 0:00:19.1]} 63...
Be3 {[%clk 0:00:26.5]} 64. Kd3 {[%clk 0:00:19]} 64... Bc5 {[%clk 0:00:25.3]} 65.
Kc4 {[%clk 0:00:18.6]} 65... Bd4 {[%clk 0:00:24.5]} 66. Bf1 {[%clk 0:00:18.5]}
66... Bc5 {[%clk 0:00:23.8]} 67. Bd3 {[%clk 0:00:18.4]} 67... Bd4 {[%clk
0:00:23.2]} 68. Be2 {[%clk 0:00:18.3]} 68... Bc5 {[%clk 0:00:22.5]} 69. Bd3
{[%clk 0:00:18.2]} 69... Bd4 {[%clk 0:00:21.8]} 70. Be2 {[%clk 0:00:18.1]} 70...
Bc5 {[%clk 0:00:21.2]} 71. Bd3 {[%clk 0:00:18]} 1/2-1/2

[Event "Live Chess"]
[Site "Chess.com"]
[Date "2024.06.02"]
[Round "-"]
[White "CarmelJane"]
[Black "nigelst"]
[Result "0-1"]
[WhiteElo "2065"]
[BlackElo "1730"]
[TimeControl "300"]
[EndTime "17:47:00 PDT"]
[Termination "nigelst won by resignation"]

1. d4 {[%clk 0:04:54.8]} 1... Nf6 {[%clk 0:04:57.4]} 2. Nc3 {[%clk 0:04:46.7]}
2... d5 {[%clk 0:04:55.3]} 3. Bf4 {[%clk 0:04:44.9]} 3... c6 {[%clk 0:04:52.5]}
4. e3 {[%clk 0:04:42.2]} 4... Bf5 {[%clk 0:04:51.1]} 5. Nf3 {[%clk 0:04:40.2]}
5... e6 {[%clk 0:04:48.9]} 6. Ne5 {[%clk 0:04:39]} 6... Nbd7 {[%clk 0:04:46.7]}
7. h3 {[%clk 0:04:34.3]} 7... Ne4 {[%clk 0:04:44.3]} 8. g4 {[%clk 0:04:25]} 8...
Bg6 {[%clk 0:04:40.9]} 9. Nxg6 {[%clk 0:04:23.2]} 9... hxg6 {[%clk 0:04:39.1]}
10. Nxe4 {[%clk 0:04:21.7]} 10... dxe4 {[%clk 0:04:37.4]} 11. Bg2 {[%clk
0:04:14.6]} 11... Be7 {[%clk 0:04:30.9]} 12. Bxe4 {[%clk 0:04:08.8]} 12... O-O
{[%clk 0:04:29.3]} 13. Bg3 {[%clk 0:03:56.6]} 13... Nf6 {[%clk 0:04:25.5]} 14.
Bd3 {[%clk 0:03:55.2]} 14... Bd6 {[%clk 0:04:24.3]} 15. Bxd6 {[%clk 0:03:51.4]}
15... Qxd6 {[%clk 0:04:22.6]} 16. Qf3 {[%clk 0:03:40.7]} 16... Qb4+ {[%clk
0:04:16.7]} 17. Ke2 {[%clk 0:03:32.5]} 17... Qxb2 {[%clk 0:04:14.8]} 18. Rab1
{[%clk 0:03:29.1]} 18... Qxa2 {[%clk 0:04:12.7]} 19. Rxb7 {[%clk 0:03:28.3]}
19... Nd5 {[%clk 0:04:05.6]} 20. Kf1 {[%clk 0:03:16.8]} 20... Rab8 {[%clk
0:04:00]} 21. Rxb8 {[%clk 0:03:14.4]} 21... Rxb8 {[%clk 0:03:57.2]} 22. Kg2
{[%clk 0:03:14]} 22... Nb4 {[%clk 0:03:48.2]} 23. Be4 {[%clk 0:02:49.6]} 23...
Nxc2 {[%clk 0:03:37.6]} 24. Bxc6 {[%clk 0:02:26.1]} 24... Rb3 {[%clk 0:03:28.3]}
25. Be8 {[%clk 0:01:23.2]} 25... Nxe3+ {[%clk 0:02:59.5]} 26. Kh2 {[%clk
0:01:14.6]} 26... Nf1+ {[%clk 0:02:46.6]} 0-1

[Event "Live Chess"]
[Site "Chess.com"]
[Date "2024.06.02"]
[Round "-"]
[White "oscalik"]
[Black "MagnersCarlsberg2870"]
[Result "1-0"]
[WhiteElo "2283"]
[BlackElo "1747"]
[TimeControl "300"]
[EndTime "17:47:09 PDT"]
[Termination "oscalik won by resignation"]

1. e4 {[%clk 0:04:55.7]} 1... c5 {[%clk 0:04:57.5]} 2. Nc3 {[%clk 0:04:54.4]}
2... a6 {[%clk 0:04:55.7]} 3. a4 {[%clk 0:04:52.5]} 3... g6 {[%clk 0:04:54.5]}
4. f4 {[%clk 0:04:51.6]} 4... Bg7 {[%clk 0:04:53.4]} 5. Nf3 {[%clk 0:04:51.3]}
5... Nc6 {[%clk 0:04:51.8]} 6. Bc4 {[%clk 0:04:50.6]} 6... e6 {[%clk 0:04:50.1]}
7. f5 {[%clk 0:04:50]} 7... Ne5 {[%clk 0:04:38.4]} 8. Nxe5 {[%clk 0:04:46.1]}
8... Bxe5 {[%clk 0:04:37.4]} 9. O-O {[%clk 0:04:44.4]} 9... Bd4+ {[%clk
0:04:33.1]} 10. Kh1 {[%clk 0:04:43.2]} 10... Nf6 {[%clk 0:04:24.5]} 11. d3
{[%clk 0:04:39.2]} 11... h5 {[%clk 0:04:22.3]} 12. fxg6 {[%clk 0:04:37]} 12...
Ng4 {[%clk 0:04:17.6]} 13. gxf7+ {[%clk 0:04:34.4]} 13... Kf8 {[%clk 0:04:16.8]}
14. Qf3 {[%clk 0:04:23.1]} 14... Qc7 {[%clk 0:04:09.2]} 15. Bf4 {[%clk
0:04:19.6]} 15... Be5 {[%clk 0:03:52.7]} 16. h3 {[%clk 0:04:11.7]} 16... Bxf4
{[%clk 0:03:44.7]} 17. Qxf4 {[%clk 0:04:11.6]} 17... e5 {[%clk 0:03:43]} 18. Qg5
{[%clk 0:03:59.6]} 1-0